bitfinex/quotes_ETHUSD_20241116
["timestamp","ask_amount","ask_price","bid_price","bid_amount"]
[1731724501280,3.21327,3112.1,3111.4,3.21398]
[1731724501281,3.21338,3112.0,3111.4,3.21398]
[1731724501881,3.21353,3111.9,3111.2,3.21419]
[1731724502210,3.21327,3112.1,3111.3,3.21408]
[1731724502409,3.21351,3111.9,3111.3,3.21408]
[1731724502577,3.21351,3111.9,3111.1,6.9967]
[1731724502783,3.21351,3111.9,3111.2,3.21415]
[1731724503097,3.21351,3111.9,3111.3,0.23790414]
[1731724503098,3.21348,3111.9,3111.3,0.23790414]
[1731724503284,3.21348,3111.9,3111.4,0.23790414]
[1731724503601,3.21348,3111.9,3111.5,0.23790414]
[1731724503781,3.21337,3112.0,3111.6,0.23790414]
[1731724503982,3.21327,3112.1,3111.4,3.21398]
[1731724504183,3.21327,3112.1,3111.5,0.23794588]
[1731724504384,3.21343,3112.0,3111.6,0.23794588]
[1731724504593,3.21348,3111.9,3111.3,3.21401]
[1731724505105,3.21338,3112.0,3111.4,3.2139]
[1731724506822,3.21249,3112.9,3112.0,0.7825]
[1731724507104,3.21207,3113.3,3112.7,3.21264]
[1731724507306,4.02843,3113.5,3112.8,3.21253]
[1731724507609,3.614783,3113.4,3112.8,3.21253]
[1731724507971,3.614783,3113.4,3112.7,3.21256]
[1731724508173,3.21174,3113.6,3112.9,3.21242]
[1731724508612,3.21174,3113.6,3112.8,3.21246]
[1731724508797,3.21174,3113.6,3113.0,3.21233]
[1731724508987,3.21174,3113.6,3112.8,3.21246]
[1731724509307,3.2124,3113.0,3112.3,0.781]
[1731724509512,3.21286,3112.5,3111.9,0.781]
[1731724509720,3.21292,3112.5,3111.9,0.781]
[1731724510370,3.2131,3112.3,3111.9,0.781]
[1731724510601,3.2131,3112.3,3111.7,0.62857895]
[1731724511005,3.21317,3112.2,3111.6,3.99472]
[1731724512096,4.03007,3112.2,3111.6,0.781]
[1731724512408,3.21338,3112.0,3111.3,0.781]
[1731724512634,3.21348,3111.9,3111.3,0.781]
[1731724512778,3.21348,3111.9,3111.3,3.99508]
[1731724513084,3.21348,3111.9,3111.3,0.781]
[1731724513408,3.21367,3111.8,3111.3,0.781]
[1731724513572,0.55,3112.1,3111.3,0.781]
[1731724513774,3.21364,3111.8,3111.3,0.781]
[1731724514516,3.21367,3111.7,3111.3,0.781]
[1731724516081,3.2138,3111.6,3111.1,0.8252]
[1731724516311,3.21393,3111.5,3111.1,0.8252]
[1731724517012,3.21379,3111.6,3111.1,0.8252]
[1731724517425,3.2139,3111.5,3111.1,0.8252]
[1731724517633,3.21379,3111.6,3110.9,3.21448]
[1731724517838,0.55,3112.1,3111.1,0.8252]
[1731724517999,0.7703,3112.3,3111.1,0.8252]
[1731724518000,0.7703,3112.3,3111.4,3.21393]
[1731724518346,0.7703,3112.3,3111.6,3.21375]
[1731724518347,3.98341,3112.3,3111.6,3.21375]
[1731724518497,3.21289,3112.5,3111.7,4.0388]
[1731724518697,3.98299,3112.7,3111.7,4.0388]
[1731724518698,3.21283,3112.6,3111.9,3.21339]
[1731724518916,3.98295,3112.7,3112.0,3.0]
[1731724519134,3.21246,3112.9,3112.2,0.8252]
[1731724519509,3.21246,3112.9,3112.3,3.21304]
[1731724520146,0.7703,3113.1,3112.2,0.8252]
[1731724520338,3.21254,3112.8,3112.2,0.8252]
[1731724520498,3.21234,3113.0,3112.2,0.8252]
[1731724520704,3.21234,3113.0,3112.3,3.21297]
[1731724520911,3.21245,3112.9,3112.3,3.21297]
[1731724521230,8.92,3114.9,3114.1,0.8252]
[1731724521395,3.21006,3115.2,3114.1,0.8252]
[1731724521597,3.21096,3114.4,3114.1,0.8252]
[1731724521804,3.21071,3114.6,3114.1,0.8252]
[1731724522125,0.398036,3115.1,3114.4,3.21088]
[1731724522304,3.21002,3115.3,3114.4,3.21088]
[1731724522305,3.21005,3115.3,3114.4,3.21088]
[1731724522531,3.2098,3115.5,3114.4,3.21088]
[1731724522532,0.321002,3115.2,3114.4,3.21088]
[1731724522706,3.2102,3115.1,3114.4,3.21088]
[1731724522903,3.21025,3115.1,3114.3,3.21099]
[1731724523140,3.20977,3115.5,3114.3,0.41004054]
[1731724523311,3.21007,3115.2,3114.3,3.62102054]
[1731724523521,3.21017,3115.1,3114.3,3.62102054]
[1731724523699,3.21036,3115.0,3114.3,0.41004054]
[1731724523903,3.21036,3115.0,3114.3,3.21097]
[1731724524349,3.21007,3115.2,3114.2,3.0]
[1731724524510,3.21037,3114.9,3114.1,3.8252]
[1731724524704,3.21054,3114.8,3114.1,0.8252]
[1731724524911,3.21054,3114.8,3114.1,1.20772]
[1731724525412,3.21029,3115.0,3114.1,3.8252]
[1731724525644,3.75983,3115.5,3114.1,0.8252]
[1731724525645,3.21059,3114.7,3114.1,0.8252]
[1731724525940,3.21045,3114.9,3114.1,0.8252]
[1731724526142,3.21045,3114.9,3114.1,1.23528131]
[1731724526344,3.21017,3115.1,3114.1,4.44646131]
[1731724526656,0.55,3115.5,3114.2,3.0]
[1731724526850,3.21037,3114.9,3114.2,3.0]
[1731724527149,3.21062,3114.7,3114.2,0.42352813]
[1731724527311,3.21062,3114.7,3114.1,0.8252]
[1731724527913,3.2106,3114.7,3114.1,0.8894166]
[1731724528108,3.2106,3114.7,3114.1,1.59948926]
[1731724529445,3.21038,3114.9,3114.2,3.0]
[1731724529647,3.21048,3114.8,3114.2,3.0]
[1731724529863,3.21066,3114.7,3114.1,1.59948926]
[1731724530024,3.21068,3114.6,3114.1,0.8252]
[1731724530356,3.21082,3114.5,3114.1,0.8252]
[1731724530709,3.21067,3114.7,3114.1,0.8252]
[1731724530950,3.21069,3114.6,3114.1,0.8252]
[1731724531451,3.21081,3114.5,3114.1,0.8252]
[1731724531649,3.98003,3115.6,3114.1,0.8252]
[1731724531943,3.98003,3115.6,3114.4,3.21086]
[1731724531944,3.21011,3115.2,3114.4,3.21086]
[1731724532155,3.21011,3115.2,3114.5,0.06420898]
[1731724532324,3.21029,3115.0,3114.2,3.21101]
[1731724532519,0.08145501,3115.1,3114.1,0.8252]
[1731724532520,3.21068,3114.7,3114.1,0.8252]
[1731724532721,0.08161514,3114.9,3114.1,0.8252]
[1731724532936,3.21098,3114.4,3114.1,0.8252]
[1731724533449,0.08127531,3114.3,3114.1,0.8252]
[1731724533824,3.21068,3114.6,3114.1,0.8252]
[1731724534036,0.08137576,3114.5,3114.1,0.8252]
[1731724534446,3.20999,3115.3,3114.2,3.44673807]
[1731724534610,0.08175511,3115.2,3114.4,3.21079]
[1731724534822,3.21029,3115.0,3114.3,3.2109]
[1731724535154,3.21029,3115.0,3114.3,3.62095981]
[1731724535155,0.08158947,3114.9,3114.3,3.62095981]
[1731724535321,0.08158947,3114.9,3114.4,6.21088]
[1731724535655,3.20976,3115.5,3114.8,0.8253]
[1731724535810,3.20976,3115.5,3114.8,0.88950149]
[1731724536011,3.20976,3115.5,3114.8,3.88950149]
[1731724536252,3.20976,3115.5,3114.8,4.09997149]
[1731724536412,3.20987,3115.4,3114.9,0.70999715]
[1731724536617,3.20996,3115.3,3114.9,0.70999715]
[1731724536854,3.2097,3115.6,3115.0,3.0]
[1731724537144,3.2097,3115.6,3115.1,0.69202872]
[1731724537347,3.20968,3115.6,3115.1,0.69202872]
[1731724537564,3.20994,3115.4,3114.9,0.70999715]
[1731724537952,3.20938,3115.9,3115.1,3.0]
[1731724538156,3.20945,3115.8,3115.2,1.1959108]
[1731724538313,3.20929,3116.0,3115.2,4.4059608]
[1731724538514,3.20945,3115.8,3115.2,4.09954091]
[1731724539063,3.20929,3116.0,3115.2,4.09954091]
[1731724539266,3.20936,3115.9,3115.3,0.40995409]
[1731724539561,3.20906,3116.2,3115.4,0.06418983]
[1731724539728,3.20906,3116.2,3115.5,0.66840939]
[1731724539928,3.20926,3116.0,3115.5,0.66840939]
[1731724540869,3.20906,3116.2,3115.6,0.06418464]
[1731724541163,3.20883,3116.4,3115.8,3.20943]
[1731724541460,3.20883,3116.4,3115.6,4.03495]
[1731724541668,3.20862,3116.6,3115.9,3.20933]
[1731724541843,3.20852,3116.7,3116.0,3.20916]
[1731724542027,3.20823,3117.0,3116.2,0.8253]
[1731724542229,3.20809,3117.2,3116.4,3.20875]
[1731724542453,3.20759,3117.6,3116.2,4.03426]
[1731724542730,3.2083,3117.0,3116.3,0.403426]
[1731724543025,4.02981,3118.6,3116.7,0.8253]
[1731724543228,3.20792,3117.3,3116.9,0.8253]
[1731724543425,0.8132,3118.0,3116.9,0.8253]
[1731724543672,3.20821,3117.0,3116.4,0.8253]
[1731724543838,3.20852,3116.7,3116.4,0.8253]
[1731724544039,3.20776,3117.5,3116.4,0.8253]
[1731724544248,3.20824,3117.0,3116.4,0.8253]
[1731724544553,3.20824,3117.0,3116.5,0.38253]
[1731724544955,3.20801,3117.2,3116.5,0.38253]
[1731724545155,3.20761,3117.6,3116.6,4.0339]
[1731724545365,3.20792,3117.3,3116.6,0.8253]
[1731724545678,3.20806,3117.2,3116.6,0.8253]
[1731724545840,3.20792,3117.3,3116.6,0.8253]
[1731724546047,3.2077,3117.5,3116.6,0.8253]
[1731724546267,3.20802,3117.2,3116.6,0.8253]
[1731724546472,3.20802,3117.2,3116.7,0.441653]
[1731724546630,3.20802,3117.2,3116.6,0.8253]
[1731724547057,3.20746,3117.8,3116.6,0.8253]
[1731724547058,3.20835,3116.9,3116.6,0.8253]
[1731724547251,3.20846,3116.8,3116.2,0.8253]
[1731724547454,3.20848,3116.8,3116.3,0.403443]
[1731724547663,3.20835,3116.9,3116.3,0.403443]
[1731724547870,3.20872,3116.6,3116.2,0.8253]
[1731724548074,3.20884,3116.4,3116.2,0.8253]
[1731724548244,3.20893,3116.3,3116.2,0.8253]
[1731724548444,3.2886721,3116.3,3116.2,0.8253]
[1731724550661,0.0797421,3116.3,3116.2,0.8253]
[1731724550862,0.0797421,3116.3,3115.9,3.0]
[1731724550863,3.20878,3116.5,3115.9,2.9503]
[1731724551064,0.07978005,3116.4,3115.9,3.95139771]
[1731724551438,0.07978005,3116.4,3116.1,3.20911]
[1731724551634,3.20854,3116.7,3116.1,3.20911]
[1731724551949,0.07988755,3116.6,3116.2,3.27318931]
[1731724552284,0.07983238,3116.5,3116.2,3.27318931]
[1731724552440,3.20838,3116.9,3116.2,3.27318931]
[1731724552637,0.07999786,3116.8,3116.2,3.27318931]
[1731724552835,0.07999786,3116.8,3116.2,1.46564235]
[1731724553035,3.20808,3117.2,3116.4,3.0]
[1731724553238,0.07952762,3117.1,3116.5,3.20871]
[1731724553472,3.20836,3116.9,3116.2,3.64953263]
[1731724553669,3.28768608,3117.0,3116.3,0.50675174]
[1731724553900,0.07936578,3116.8,3116.4,0.7689]
[1731724554068,3.20824,3117.0,3116.4,1.18452844]
[1731724554273,0.07942573,3116.9,3116.6,3.20862]
[1731724554590,3.2077,3117.5,3116.7,0.7689]
[1731724554780,0.07937058,3116.8,3116.7,3.97734]
[1731724555101,3.2077,3117.5,3116.7,5.034046]
[1731724555397,0.07938099,3116.8,3116.7,5.034046]
[1731724555564,3.20793,3117.3,3116.7,1.825606]
[1731724555887,3.2079,3117.3,3116.7,5.034116]
[1731724556088,0.07960158,3117.2,3116.7,3.97741]
[1731724557498,0.07960158,3117.2,3116.7,0.7689]
[1731724557663,3.20814,3117.1,3116.7,0.7689]
[1731724557863,0.07949529,3117.0,3116.7,0.7689]
[1731724558087,3.20801,3117.2,3116.7,1.166661]
[1731724558298,0.07944014,3116.9,3116.7,1.166661]
[1731724558599,3.20801,3117.2,3116.7,1.166661]
[1731724558764,0.07938499,3116.8,3116.7,1.166661]
[1731724559111,0.07938459,3116.8,3116.7,1.166661]
[1731724559272,3.2078,3117.4,3116.7,4.375181]
[1731724559470,0.07966031,3117.3,3116.8,0.4375181]
[1731724559671,3.28763031,3117.3,3116.8,0.4375181]
[1731724559899,3.20811,3117.1,3116.7,1.166661]
[1731724560311,3.28771489,3117.0,3116.7,1.166661]
[1731724560607,0.07949489,3117.0,3116.7,0.7689]
[1731724560899,3.20803,3117.2,3116.7,0.7689]
[1731724561088,0.07944417,3116.9,3116.7,0.7689]
[1731724561421,3.20803,3117.2,3116.7,0.7689]
[1731724561569,0.07938902,3116.8,3116.7,0.7689]
[1731724561769,3.20832,3116.9,3116.7,0.7689]
[1731724561987,0.07939382,3116.8,3116.7,0.7689]
[1731724562503,3.20769,3117.6,3116.7,4.37518]
[1731724562715,0.07939382,3116.8,3116.7,4.37518]
[1731724562875,3.20788,3117.4,3116.7,4.37518]
[1731724563077,3.20812,3117.1,3116.7,0.7689]
[1731724563307,3.20801,3117.2,3116.7,0.7689]
[1731724563512,0.07950412,3117.0,3116.7,0.7789]
[1731724563713,3.20752,3117.7,3116.9,3.20831]
[1731724564014,3.20771,3117.5,3116.9,3.20831]
[1731724564226,0.320752,3117.6,3116.9,3.20831]
[1731724564227,3.2076,3117.6,3116.9,3.20831]
[1731724564513,3.20752,3117.7,3117.0,3.20819]
[1731724564685,3.20752,3117.7,3116.9,3.21831]
[1731724564686,3.20757,3117.7,3117.1,0.64265]
[1731724565011,3.20759,3117.6,3117.2,0.23598016]
[1731724565229,3.20759,3117.6,3116.9,3.21831]
[1731724565230,3.20759,3117.6,3117.3,0.23598016]
[1731724565434,3.20772,3117.5,3117.4,0.23598016]
[1731724565726,4.01573,3118.2,3117.4,0.23598016]
[1731724565929,4.01573,3118.2,3117.5,0.23598016]
[1731724565930,3.20759,3117.6,3117.5,0.23598016]
[1731724566999,3.20759,3117.6,3116.9,0.7789]
[1731724567199,3.20783,3117.4,3117.0,0.24641761]
[1731724567436,3.20782,3117.4,3117.1,0.23641761]
[1731724567739,3.20791,3117.3,3117.2,0.23641761]
[1731724569706,3.20791,3117.3,3116.9,0.7689]
[1731724570042,3.20805,3117.2,3117.0,0.23684835]
[1731724570200,3.20805,3117.2,3117.1,0.23684835]
[1731724570403,3.20805,3117.2,3116.9,0.7689]
[1731724570611,3.20805,3117.2,3117.1,0.23688767]
[1731724570939,3.20805,3117.2,3116.9,0.7689]
[1731724571237,3.20811,3117.1,3117.0,0.2370087]
[1731724572337,3.20821,3117.0,3116.6,0.8085]
[1731724572638,3.20821,3117.0,3116.8,0.01]
[1731724572861,3.20811,3117.1,3116.8,0.01]
[1731724572862,3.20831,3116.9,3116.8,0.01]
[1731724573230,3.75831,3116.9,3116.8,0.01]
[1731724573958,3.20891,3116.4,3116.0,0.01]
[1731724574134,0.320811,3117.0,3116.2,0.7976]
[1731724574332,3.20813,3117.1,3116.4,3.20875]
[1731724574667,3.20813,3117.1,3116.6,0.7976]
[1731724574868,3.20813,3117.1,3116.7,0.01]
[1731724575020,3.20823,3117.0,3116.7,0.01]
[1731724575561,3.20832,3116.9,3116.7,0.01]
[1731724575924,3.20817,3117.1,3116.7,0.01]
[1731724576222,3.20804,3117.2,3116.7,0.01]
[1731724576223,6.41613,3117.2,3116.7,0.01]
[1731724576435,3.20804,3117.2,3116.7,0.01]
[1731724576767,3.20802,3117.2,3116.7,0.01]
[1731724577341,3.20782,3117.4,3116.7,3.21843]
[1731724577548,3.20782,3117.4,3116.8,0.06416482]
[1731724577735,3.20782,3117.4,3116.8,0.23]
[1731724578071,3.28490035,3117.3,3116.8,0.23]
[1731724578272,3.20801,3117.2,3116.8,0.23]
[1731724578671,0.07687007,3117.1,3116.8,0.23]
[1731724579029,3.20771,3117.5,3116.8,4.25568365]
[1731724579234,0.07682016,3117.0,3116.8,4.25568365]
[1731724579471,3.96429,3117.6,3116.8,0.23]
[1731724579667,0.07676621,3116.9,3116.8,0.23]
[1731724579869,3.20797,3117.3,3116.8,0.23]
[1731724580070,0.07676421,3116.9,3116.8,0.23]
[1731724580372,3.20797,3117.3,3116.8,0.72650765]
[1731724580538,0.07676298,3116.9,3116.8,0.72650765]
[1731724580741,3.20797,3117.3,3116.8,0.72650765]
[1731724580963,0.07676298,3116.9,3116.8,0.72650765]
[1731724581169,3.20769,3117.5,3116.8,0.72650765]
[1731724581392,0.07676501,3116.9,3116.8,3.93483765]
[1731724581535,3.20769,3117.5,3116.8,0.72650765]
[1731724581732,0.7567,3117.9,3116.9,0.44553841]
[1731724581959,3.2079,3117.3,3116.8,0.23]
[1731724583251,3.2077,3117.5,3116.8,0.23]
[1731724583455,3.2077,3117.5,3116.9,3.20829]
[1731724583774,3.2077,3117.5,3117.0,0.7976]
[1731724585236,3.20781,3117.4,3117.0,0.7976]
[1731724586148,3.20752,3117.7,3117.0,4.0058]
[1731724586842,3.20759,3117.6,3117.0,4.0058]
[1731724587720,3.20741,3117.8,3117.2,3.20799]
[1731724587899,0.7567,3118.2,3117.6,3.20752]
[1731724588193,8.92,3119.6,3117.6,3.20752]
[1731724588194,0.7567,3118.6,3117.7,0.7976]
[1731724588402,3.20687,3118.4,3117.7,0.7976]
[1731724588545,3.207,3118.2,3117.7,0.7976]
[1731724588747,3.20678,3118.4,3117.8,3.20737]
[1731724589145,0.1452531,3118.5,3117.8,3.20737]
[1731724589146,0.1452531,3118.5,3117.9,3.20726]
[1731724589356,3.3519531,3118.5,3117.9,0.06413896]
[1731724589554,3.2068,3118.4,3117.9,0.06413896]
[1731724589981,0.1452531,3118.5,3117.9,0.06413896]
[1731724590191,3.20697,3118.2,3117.4,0.64019336]
[1731724590357,3.20697,3118.2,3117.6,0.7999]
[1731724590547,3.3519631,3118.5,3117.8,3.20738]
[1731724590548,0.07752306,3118.1,3117.8,3.20738]
[1731724590884,3.3519631,3118.5,3117.9,0.7999]
[1731724591097,0.07748275,3118.0,3117.9,0.7999]
[1731724591401,3.20691,3118.3,3117.9,0.7999]
[1731724591539,0.07748275,3118.0,3117.9,0.7999]
[1731724591743,3.20708,3118.1,3117.9,0.7999]
[1731724591939,3.28466275,3118.0,3117.5,0.7999]
[1731724592147,3.2075,3117.7,3117.5,0.7999]
[1731724592655,0.07725867,3117.6,3117.5,0.7999]
[1731724592957,3.20728,3117.9,3117.5,0.7999]
[1731724593157,0.07725507,3117.6,3117.5,0.7999]
[1731724593369,3.20719,3118.0,3117.5,0.7999]
[1731724593682,0.07725507,3117.6,3117.5,0.7999]
[1731724593839,3.20726,3118.0,3117.5,0.7999]
[1731724594045,0.07725107,3117.6,3117.5,0.7999]
[1731724594278,3.20726,3118.0,3117.5,0.7999]
[1731724594453,0.07725107,3117.6,3117.5,0.7999]
[1731724594654,3.20709,3118.1,3117.5,4.41476323]
[1731724594846,0.07725107,3117.6,3117.5,4.41476323]
[1731724595046,3.20688,3118.3,3117.7,3.20739]
[1731724595475,0.07756776,3118.2,3117.7,3.20739]
[1731724595673,0.07756776,3118.2,3117.6,0.44147632]
[1731724595901,3.20679,3118.4,3117.8,3.20738]
[1731724596174,0.07751265,3118.1,3117.9,0.7999]
[1731724596381,3.20679,3118.4,3117.9,0.7999]
[1731724596584,0.07746554,3118.0,3117.9,0.7999]
[1731724597230,3.20679,3118.4,3117.9,0.7999]
[1731724597376,0.07746554,3118.0,3117.9,0.7999]
[1731724597576,3.20679,3118.4,3117.9,1.200621]
[1731724597773,0.07746554,3118.0,3117.9,0.7999]
[1731724597990,3.20679,3118.4,3117.9,0.7999]
[1731724598191,0.07746234,3118.0,3117.9,0.7999]
[1731724598404,3.20679,3118.4,3117.9,0.7999]
[1731724598574,0.07746234,3118.0,3117.9,0.7999]
[1731724599081,3.20688,3118.3,3117.9,0.7999]
[1731724599279,0.07757336,3118.2,3117.9,0.7999]
[1731724599484,3.20688,3118.3,3117.9,0.7999]
[1731724599777,3.20698,3118.2,3117.9,0.7999]
[1731724599977,3.28455336,3118.2,3117.9,0.7999]
[1731724600189,3.20709,3118.1,3117.6,1.24137632]
[1731724600386,3.2072,3118.0,3117.6,0.7999]
[1731724600593,3.28466394,3118.0,3117.6,0.7999]
[1731724601427,3.20731,3117.9,3117.6,0.7999]
[1731724601715,0.07736012,3117.8,3117.6,0.7999]
[1731724602524,4.00911,3118.2,3117.6,0.7999]
[1731724602691,0.400911,3118.1,3117.6,0.7999]
[1731724602907,3.20721,3118.0,3117.6,0.7999]
[1731724603218,3.28468075,3118.0,3117.6,0.7999]
[1731724605733,3.20731,3117.9,3117.4,0.7999]
[1731724605910,3.28472403,3117.9,3117.4,0.7999]
[1731724606325,0.07741403,3117.9,3117.4,0.7999]
[1731724606634,3.2075,3117.7,3117.4,0.7999]
[1731724606807,3.20761,3117.6,3117.3,0.62820376]
[1731724606995,0.07724867,3117.6,3117.3,0.62820376]
[1731724607198,3.28491867,3117.6,3117.1,0.7999]
[1731724607433,0.07724867,3117.6,3117.1,0.7999]
[1731724607644,3.28484867,3117.6,3117.1,0.7999]
[1731724607937,0.07724867,3117.6,3117.1,4.00794]
[1731724608102,0.07724867,3117.6,3117.1,4.729554]
[1731724608500,0.07724867,3117.6,3117.1,1.521514]
[1731724608728,3.20732,3117.9,3117.1,1.521514]
[1731724609042,4.1794231,3118.5,3117.8,3.20737]
[1731724609336,3.20684,3118.4,3117.8,3.20737]
[1731724611172,3.20703,3118.2,3117.7,0.829]
[1731724611361,0.33520931,3118.3,3117.7,4.03648]
[1731724611560,3.20684,3118.4,3117.7,0.829]
[1731724611758,0.1452531,3118.5,3118.0,3.20718]
[1731724612076,0.1452531,3118.5,3118.3,3.20678]
[1731724612633,0.1452531,3118.5,3118.2,0.829]
[1731724612873,3.3519231,3118.5,3118.2,0.829]
[1731724613175,0.1452531,3118.5,3118.2,0.829]
[1731724613776,3.3519331,3118.5,3118.2,0.829]
[1731724614245,0.1452531,3118.5,3118.2,0.829]
[1731724615173,4.1718431,3118.5,3117.8,3.7715]
[1731724615338,3.20681,3118.4,3117.8,3.7715]
[1731724615536,3.20688,3118.3,3117.8,0.7715]
[1731724615747,3.2073,3117.9,3117.5,0.7715]
[1731724616753,3.20742,3117.8,3117.5,0.7715]
[1731724617780,3.20749,3117.7,3117.4,0.62805213]
[1731724618026,3.20749,3117.7,3117.2,0.7715]
[1731724618328,3.20741,3117.8,3117.2,1.169453]
[1731724619511,3.2073,3117.9,3117.2,1.169453]
[1731724619713,3.20749,3117.7,3117.2,0.7715]
[1731724619921,3.2077,3117.5,3117.2,0.7715]
[1731724620221,3.2077,3117.5,3117.3,0.6409977]
[1731724620390,3.20761,3117.6,3117.3,0.6409977]
[1731724620593,3.2076,3117.6,3117.3,0.6409977]
[1731724620923,3.20749,3117.7,3117.3,0.6409977]
[1731724621083,0.8199,3117.8,3117.3,0.6409977]
[1731724621439,3.2075,3117.7,3117.3,0.6409977]
[1731724621603,3.2076,3117.6,3117.2,0.7715]
[1731724622716,0.07718475,3117.5,3117.2,0.7715]
[1731724622919,3.20739,3117.8,3117.2,3.97947]
[1731724623092,3.2072,3118.0,3117.3,3.605837]
[1731724623093,0.077295,3117.7,3117.3,3.605837]
[1731724623293,3.2073,3117.9,3117.3,3.605837]
[1731724623492,3.2074,3117.8,3117.3,0.397947]
[1731724623728,3.20758,3117.7,3117.2,1.40390219]
[1731724623937,0.07723707,3117.6,3116.8,0.7715]
[1731724624101,3.20797,3117.3,3116.8,0.7715]
[1731724624307,0.07700373,3117.2,3116.8,0.7715]
[1731724624521,3.20797,3117.3,3116.8,1.169501]
[1731724624700,0.07700653,3117.2,3116.8,1.169501]
[1731724624923,3.20769,3117.5,3116.8,4.377901]
[1731724625120,0.0771168,3117.4,3116.8,4.377901]
[1731724625357,3.2849268,3117.4,3116.8,4.377901]
[1731724625507,3.2849268,3117.4,3116.8,1.80562132]
[1731724625715,0.0771168,3117.4,3116.9,3.27239091]
[1731724625900,3.2077,3117.5,3116.9,3.78019213]
[1731724626101,0.077104,3117.4,3116.9,3.71603122]
[1731724626600,0.077104,3117.4,3117.0,3.20814]
[1731724626826,3.20767,3117.6,3117.0,4.08111925]
[1731724627137,4.02747,3117.7,3117.1,3.2081]
[1731724627300,3.28480946,3117.6,3117.0,0.87297925]
[1731724627611,3.28480946,3117.6,3117.0,4.08118925]
[1731724628322,0.07720946,3117.6,3117.1,3.68036596]
[1731724628526,0.07720946,3117.6,3117.1,3.61620893]
[1731724628733,0.07720946,3117.6,3117.3,0.805]
[1731724629044,3.20704,3118.2,3117.4,3.27185293]
[1731724629249,3.20704,3118.2,3117.6,3.20757]
[1731724629642,3.20704,3118.2,3117.4,3.27185293]
[1731724629643,0.1452531,3118.5,3117.8,3.2073]
[1731724629831,0.1452531,3118.5,3118.1,3.20707]
[1731724630011,0.1452531,3118.5,3118.2,0.805]
[1731724630216,0.1452531,3118.5,3118.0,0.0641365]
[1731724630457,0.55821141,3118.5,3118.0,0.0641365]
[1731724630653,0.1452531,3118.5,3117.8,3.2073]
[1731724630864,0.1452531,3118.5,3118.2,3.20689]
[1731724631032,0.1452531,3118.5,3118.3,0.805]
[1731724631854,0.1452531,3118.5,3117.9,4.01225]
[1731724632021,0.1452531,3118.5,3118.0,3.20715]
[1731724632421,0.1452531,3118.5,3118.1,3.20707]
[1731724632743,0.1452531,3118.5,3117.9,4.01227]
[1731724632931,0.1452531,3118.5,3118.2,3.20688]
[1731724633569,0.1452531,3118.5,3118.3,0.23702148]
[1731724633849,0.1452531,3118.5,3118.2,3.20688]
[1731724634051,0.1452531,3118.5,3118.3,0.23700474]
[1731724634253,0.1452531,3118.5,3118.3,3.20682]
[1731724635466,0.1452531,3118.5,3118.4,3.20677]
[1731724635963,0.1452531,3118.5,3118.2,3.20689]
[1731724636125,0.1452531,3118.5,3118.3,3.44378649]
[1731724636325,0.1452531,3118.5,3118.4,0.23694649]
[1731724636656,0.1452531,3118.5,3118.3,3.20684]
[1731724637155,0.1452531,3118.5,3118.4,0.2368669]
[1731724637871,0.1452531,3118.5,3118.0,3.20715]
[1731724637872,0.22302941,3118.5,3118.0,3.20715]
[1731724638169,0.22302941,3118.5,3118.2,3.20695]
[1731724638328,0.22302941,3118.5,3118.0,3.0]
[1731724638521,0.22302941,3118.5,3118.1,3.207]
[1731724638750,0.22302941,3118.5,3118.2,0.23690486]
[1731724639058,0.22302941,3118.5,3118.2,3.20696]
[1731724639257,0.22302941,3118.5,3118.3,0.23686621]
[1731724639461,0.22302941,3118.5,3118.2,3.20696]
[1731724639645,0.22302941,3118.5,3117.9,4.01225]
[1731724639845,0.22302941,3118.5,3117.8,3.0]
[1731724639846,3.20677,3118.4,3118.0,0.23687561]
[1731724640163,4.20750941,3118.5,3117.9,3.20721]
[1731724640467,0.07771558,3118.4,3117.9,3.20721]
[1731724640965,3.28449558,3118.4,3117.8,3.20738]
[1731724641136,3.28449558,3118.4,3117.9,0.23694512]
[1731724641335,3.28449558,3118.4,3117.8,3.20738]
[1731724641975,3.28449558,3118.4,3117.7,3.20749]
[1731724642268,4.02590745,3118.4,3117.8,0.2369576]
[1731724642473,3.20705,3118.2,3117.8,0.2369576]
[1731724642765,0.07754947,3118.1,3117.6,0.63838789]
[1731724642970,0.07754947,3118.1,3117.6,3.84594789]
[1731724643138,0.07754947,3118.1,3117.7,0.23698764]
[1731724643337,0.07754947,3118.1,3117.6,3.91009335]
[1731724643541,0.07754947,3118.1,3117.7,3.20747]
[1731724643963,3.98467,3118.3,3117.7,3.20747]
[1731724644568,0.07760457,3118.2,3117.7,3.20747]
[1731724645266,3.28458457,3118.2,3117.6,0.70253337]
[1731724645475,3.28458457,3118.2,3117.6,0.63838789]
[1731724645643,0.07760457,3118.2,3117.6,3.84589789]
[1731724645844,0.07760457,3118.2,3117.7,0.06414549]
[1731724646033,0.07760457,3118.2,3117.9,0.8307]
[1731724646241,0.1452531,3118.5,3118.0,3.2071]
[1731724646549,0.07769397,3118.4,3118.3,3.20687]
[1731724646781,0.07769397,3118.4,3118.3,4.027947]
[1731724646931,0.1452531,3118.5,3118.4,3.20677]
[1731724647433,0.1452531,3118.5,3118.4,6.82977]
[1731724647434,0.22299856,3118.5,3118.4,6.82977]
[1731724647631,4.03687,3119.6,3118.8,3.20635]
[1731724647861,0.07572355,3119.5,3119.0,3.20614]
[1731724648234,0.07572355,3119.5,3118.8,3.20635]
[1731724651558,0.07608464,3120.1,3119.5,3.526197]
[1731724651875,3.205,3120.2,3119.5,3.20563]
[1731724652237,3.28112784,3120.1,3119.5,3.20563]
[1731724652457,3.28111784,3120.1,3119.5,3.20563]
[1731724653470,0.07608784,3120.1,3119.5,6.09365888]
[1731724653690,0.07608784,3120.1,3119.8,0.7832]